fUSD/lending_fUSD_20260424
["ID","MTS","AMOUNT","RATE_DAILY","PERIOD"]
[421084465,1777005043427,-182.34835397,0.0001,2]
[421084466,1777005043437,-502.0,0.0001,2]
[421084467,1777005043446,-2000.0,0.0001,2]
[421084468,1777005043455,-2000.0,0.0001,2]
[421084469,1777005043465,-2000.0,0.0001,2]
[421084470,1777005043475,-2000.0,0.0001,2]
[421084471,1777005043485,-2000.0,0.0001,2]
[421084472,1777005043495,-2000.0,0.0001,2]
[421084473,1777005043505,-200.0,0.0001,2]
[421084474,1777005043515,-500.0,0.0001,2]
[421084475,1777005043526,-151.0,0.0001,2]
[421084476,1777005043537,-500.0,0.0001,2]
[421084477,1777005043549,-151.0,0.0001,2]
[421084478,1777005043559,-500.0,0.0001,2]
[421084479,1777005043568,-151.0,0.0001,2]
[421084480,1777005043578,-500.0,0.0001,2]
[421084481,1777005043588,-151.0,0.0001,2]
[421084482,1777005043597,-500.0,0.0001,2]
[421084483,1777005043607,-151.0,0.0001,2]
[421084484,1777005043616,-500.0,0.0001,2]
[421084485,1777005043626,-151.0,0.0001,2]
[421084486,1777005043635,-500.0,0.0001,2]
[421084487,1777005043645,-151.0,0.0001,2]
[421084488,1777005043659,-500.0,0.0001,2]
[421084489,1777005043668,-151.0,0.0001,2]
[421084490,1777005043679,-500.0,0.0001,2]
[421084491,1777005043689,-151.0,0.0001,2]
[421084492,1777005043699,-500.0,0.0001,2]
[421084493,1777005043709,-500.0,0.0001,2]
[421084494,1777005043719,-151.0,0.0001,2]
[421084495,1777005043729,-151.0,0.0001,2]
[421084496,1777005043739,-151.0,0.0001,2]
[421084497,1777005043748,-151.0,0.0001,2]
[421084498,1777005043758,-151.0,0.0001,2]
[421084499,1777005043768,-500.0,0.0001,2]
[421084500,1777005043777,-151.0,0.0001,2]
[421084501,1777005043787,-500.0,0.0001,2]
[421084502,1777005043797,-151.0,0.0001,2]
[421084503,1777005043806,-500.0,0.0001,2]
[421084504,1777005043816,-500.0,0.0001,2]
[421084505,1777005043826,-500.0,0.0001,2]
[421084506,1777005043836,-151.0,0.0001,2]
[421084507,1777005043846,-500.0,0.0001,2]
[421084508,1777005043856,-151.0,0.0001,2]
[421084509,1777005043865,-500.0,0.0001,2]
[421084510,1777005043875,-151.0,0.0001,2]
[421084511,1777005043885,-500.0,0.0001,2]
[421084512,1777005043895,-151.0,0.0001,2]
[421084513,1777005043904,-500.0,0.0001,2]
[421084514,1777005043914,-151.0,0.0001,2]
[421084515,1777005043925,-500.0,0.0001,2]
[421084516,1777005043934,-151.0,0.0001,2]
[421084517,1777005043944,-500.0,0.0001,2]
[421084518,1777005043954,-151.0,0.0001,2]
[421084519,1777005043964,-151.0,0.0001,2]
[421084520,1777005043974,-151.0,0.0001,2]
[421084521,1777005043984,-151.0,0.0001,2]
[421084522,1777005043993,-151.0,0.0001,2]
[421084523,1777005044003,-151.0,0.0001,2]
[421084524,1777005044013,-151.0,0.0001,2]
[421084525,1777005044023,-151.0,0.0001,2]
[421084526,1777005044033,-1457.77874654,0.0001,2]
[421084527,1777005044043,-151.0,0.0001,2]
[421084528,1777005044056,-1082.07202723,0.0001,2]
[421084529,1777005044066,-1592.87721993,0.00010034,2]
[421084530,1777005044076,-308.27341815,0.00010034,2]
[421084531,1777005044085,-194.72792766,0.00010034,2]
[421084532,1777005044095,-233.51889341,0.00010034,2]
[421084533,1777005044105,-433.0,0.00010036,2]
[421084534,1777005044114,-844.53,0.00010038,2]
[421084535,1777005044124,-5530.0,0.000101,5]
[421084536,1777005044134,-1505.54274539,0.00010116,2]
[421084537,1777005044143,-2000.0,0.00010116,2]
[421084538,1777005044153,-2000.0,0.00010116,2]
[421084539,1777005044163,-2000.0,0.00010116,2]
[421084540,1777005044173,-250.0,0.00010194,2]
[421084541,1777005044183,-638.38,0.00010202,2]
[421084542,1777005044194,-392.67,0.00010207,2]
[421084543,1777005044204,-478.0,0.00010207,2]
[421084544,1777005044213,-183.36,0.00010208,2]
[421084545,1777005044223,-478.01,0.00010208,2]
[421084546,1777005044233,-156.22,0.000103,2]
[421084547,1777005044242,-152.0,0.00010302,3]
[421084548,1777005044252,-844.59624119,0.00010312,2]
[421084549,1777005044262,-356.3809,0.00010386,2]
[421084550,1777005044272,-3292.0,0.00010402,2]
[421084551,1777005044285,-152.0,0.00010434,4]
[421084552,1777005044294,-725.8,0.00010468,2]
[421084553,1777005044306,-8549.29,0.00010468,2]
[421084554,1777005044316,-1683.28874024,0.00010486,2]
[421084555,1777005044326,-2855.2046,0.00010508,2]
[421084556,1777005044335,-200.0,0.00010548,2]
[421084557,1777005044344,-152.0,0.00010566,5]
[421084558,1777005044354,-11969.0,0.00010574,2]
[421084559,1777005044364,-1160.291537,0.00010576,2]
[421084560,1777005044374,-722.341287,0.00010576,2]
[421084561,1777005044384,-1651.81367706,0.00010582,2]
[421084562,1777005044393,-201.93286099,0.00010582,2]
[421084563,1777005044403,-242.15909246,0.00010582,2]
[421084564,1777005044413,-10000.0,0.00010593,2]
[421084565,1777005044423,-1000.0,0.000106,5]
[421084566,1777005044433,-1000.0,0.000106,4]
[421084567,1777005044443,-377.10378431,0.000106,2]
[421084568,1777005044452,-21478.26282358,0.000106,2]
[421084569,1777005044462,-3440.9513355,0.000106,2]
[421084570,1777005044471,-500.0,0.00010608,2]
[421084571,1777005044481,-495.0,0.00010658,2]
[421084572,1777005044491,-2500.0,0.00010664,2]
[421084573,1777005044501,-2500.0,0.00010664,2]
[421084574,1777005044514,-966.87416362,0.00010664,2]
[421084575,1777005044524,-501.56215985,0.00010673,2]
[421084576,1777005044534,-500.0,0.00010673,2]
[421084577,1777005044543,-308.0,0.00010685,2]
[421084578,1777005044553,-12301.0,0.00010685,2]
[421084579,1777005044563,-369.0,0.00010685,2]
[421084580,1777005044572,-1082.07202723,0.0001069,2]
[421084581,1777005044583,-152.0,0.00010697,6]
[421084582,1777005044592,-150.0,0.00010699,2]
[421084583,1777005044602,-521565.04836008,0.000107,2]
[421084584,1777005044612,-126083.27158435,0.000107,2]
[421084585,1777005044621,-148569.76343113,0.000107,2]
[421084586,1777005044631,-433762.15460417,0.000107,2]
[421084587,1777005044641,-247679.42886049,0.000107,2]
[421084588,1777005044651,-286018.48654939,0.000107,2]
[421084589,1777005044660,-309792.22628202,0.000107,2]
[421084590,1777005044672,-7200.0,0.000107,3]
[421084591,1777005044682,-3666.01,0.000107,2]
[421084592,1777005044693,-9600.0,0.000108,3]
[421084593,1777005044703,-160.64,0.000108,2]
[421084594,1777005044713,-1257.933274,0.000108,2]
[421084595,1777005044724,-152.0,0.00010829,7]
[421084596,1777005044734,-1200.0,0.00010882,2]
[421084597,1777005044747,-2900.0,0.00010882,2]
[421084598,1777005044756,-160.65467667,0.00010898,3]
[421084599,1777005044766,-3666.01,0.000109,2]
[421084600,1777005044777,-12100.0,0.000109,3]
[421084601,1777005044787,-200.0,0.00010959,2]
[421084602,1777005044797,-200.0,0.00010959,2]
[421084603,1777005044808,-500.0,0.00010959,2]
[421084604,1777005044818,-196.730102,0.00010959,2]
[421084605,1777005044828,-196.730102,0.00010959,2]
[421084606,1777005044838,-196.730102,0.00010959,2]
[421084607,1777005044848,-196.730102,0.00010959,2]
[421084608,1777005044859,-196.730102,0.00010959,2]
[421084609,1777005044869,-196.730102,0.00010959,2]
[421084611,1777005045280,-196.730102,0.00010959,2]
[421084612,1777005045293,-196.730102,0.00010959,2]
[421084613,1777005045304,-196.730102,0.00010959,2]
[421084614,1777005045315,-196.730102,0.00010959,2]
[421084615,1777005045326,-196.730102,0.00010959,2]
[421084616,1777005045336,-196.730102,0.00010959,2]
[421084617,1777005045346,-196.730102,0.00010959,2]
[421084618,1777005045355,-196.730102,0.00010959,2]
[421084619,1777005045365,-196.730102,0.00010959,2]
[421084620,1777005045374,-358.069344,0.00010959,2]
[421084621,1777005045384,-358.069344,0.00010959,2]
[421084622,1777005045394,-196.730102,0.00010959,2]
[421084623,1777005045404,-358.069344,0.00010959,2]
[421084624,1777005045414,-196.730102,0.00010959,2]
[421084625,1777005045425,-358.069344,0.00010959,2]
[421084626,1777005045434,-196.730102,0.00010959,2]
[421084627,1777005045444,-358.069344,0.00010959,2]
[421084628,1777005045458,-196.730102,0.00010959,2]
[421084629,1777005045469,-358.069344,0.00010959,2]
[421084630,1777005045480,-196.730095,0.00010959,2]
[421084631,1777005045489,-358.069344,0.00010959,2]
[421084632,1777005045499,-358.069344,0.00010959,2]
[421084633,1777005045508,-358.069344,0.00010959,2]
[421084634,1777005045518,-358.069344,0.00010959,2]
[421084635,1777005045527,-358.069344,0.00010959,2]
[421084636,1777005045538,-358.069344,0.00010959,2]
[421084637,1777005045548,-358.069344,0.00010959,2]
[421084638,1777005045558,-358.069344,0.00010959,2]
[421084639,1777005045569,-358.069344,0.00010959,2]
[421084640,1777005045579,-358.069344,0.00010959,2]
[421084641,1777005045590,-358.069344,0.00010959,2]
[421084642,1777005045600,-358.069344,0.00010959,2]
[421084643,1777005045610,-358.069344,0.00010959,2]
[421084644,1777005045621,-358.069353,0.00010959,2]
[421084645,1777005045631,-1888.0,0.00010959,2]
[421084646,1777005045643,-1145.649457,0.00010959,2]
[421084647,1777005045652,-1145.649457,0.00010959,2]
[421084648,1777005045664,-1145.649457,0.00010959,2]
[421084649,1777005045675,-1145.649457,0.00010959,2]
[421084650,1777005045689,-1145.649457,0.00010959,2]
[421084651,1777005045699,-1145.649457,0.00010959,2]
[421084652,1777005045710,-1145.649457,0.00010959,2]
[421084653,1777005045721,-1145.649457,0.00010959,2]
[421084654,1777005045732,-1145.649457,0.00010959,2]
[421084655,1777005045743,-1145.649457,0.00010959,2]
[421084656,1777005045753,-1145.649457,0.00010959,2]
[421084657,1777005045763,-1145.649457,0.00010959,2]
[421084658,1777005045773,-1145.649457,0.00010959,2]
[421084659,1777005045783,-1145.649457,0.00010959,2]
[421084660,1777005045793,-1145.649457,0.00010959,2]
[421084661,1777005045803,-1145.649457,0.00010959,2]
[421084662,1777005045813,-1145.649457,0.00010959,2]
[421084663,1777005045823,-1145.649457,0.00010959,2]
[421084664,1777005045833,-1145.649457,0.00010959,2]
[421084665,1777005045843,-1145.649459,0.00010959,2]
[421084666,1777005045853,-4217.0,0.00010959,2]
[421084667,1777005045863,-1123.74107456,0.00010959,2]
[421084668,1777005045873,-341.20971678,0.00010959,2]
[421084669,1777005045883,-152.0,0.0001096,8]
[421084670,1777005045895,-300.0,0.00010988,2]
[421084671,1777005045905,-300.0,0.00010988,2]
[421084672,1777005045916,-300.0,0.00010988,2]
[421084673,1777005045929,-163.27,0.00010989,2]
[421084674,1777005045939,-429.98,0.00010989,2]
[421084675,1777005045950,-1083.56,0.00010989,2]
[421084676,1777005045960,-1340.14,0.00010989,2]
[421084677,1777005045970,-1142.68,0.00010989,2]
[421084678,1777005045981,-2000.0,0.00010989,2]
[421084679,1777005045991,-795.98,0.00010989,2]
[421084680,1777005046001,-2000.0,0.00010989,2]
[421084681,1777005046011,-244.18,0.00010989,2]
[421084682,1777005046021,-1563.13,0.00010989,2]
[421084683,1777005046031,-446.59,0.00010989,2]
[421084684,1777005046042,-445.14,0.00010989,2]
[421084685,1777005046052,-1344.2,0.00010989,2]
[421084686,1777005046063,-1578.8,0.00010989,2]
[421084687,1777005046074,-261.86,0.00010989,2]
[421084688,1777005046084,-188.66,0.00010989,2]
[421084689,1777005046094,-490.01,0.00010989,2]
[421084690,1777005046104,-283.09,0.00010989,2]
[421084691,1777005046114,-508.31,0.00010989,2]
[421084692,1777005046124,-233.75,0.00010989,2]
[421084693,1777005046133,-410.74,0.00010989,2]
[421084694,1777005046146,-1474.15,0.00010989,2]
[421084695,1777005046155,-1869.0,0.00010989,2]
[421084696,1777005046165,-150.0,0.00010989,2]
[421084697,1777005046175,-1031.47,0.00010989,2]
[421084698,1777005046185,-1346.23,0.00010989,2]
[421084699,1777005046195,-160.64,0.00011,2]
[421084700,1777005046205,-160.64,0.00011,2]
[421084701,1777005046216,-160.64,0.00011,2]
[421084702,1777005046226,-3666.01,0.00011,2]
[421084703,1777005046236,-3666.01,0.00011,2]
[421084704,1777005046247,-697.55,0.00011,2]
[421084705,1777005046257,-158.0,0.00011,2]
[421084706,1777005046267,-161.0,0.00011,2]
[421084707,1777005046277,-161.89,0.00011,2]
[421084708,1777005046286,-6019.49315603,0.00011,2]
[421084709,1777005046296,-570.44,0.00011016,2]
[421084710,1777005046307,-392.69,0.00011022,2]
[421084711,1777005046316,-151.0,0.00011022,2]
[421084712,1777005046326,-392.67,0.00011022,2]
[421084713,1777005046336,-151.0,0.00011028,2]
[421084714,1777005046346,-392.67,0.00011028,2]
[421084715,1777005046355,-151.0,0.00011028,2]
[421084717,1777005046365,-151.0,0.00011028,2]
[421084718,1777005046377,-151.0,0.00011028,2]
[421084719,1777005046388,-151.0,0.00011028,2]
[421084720,1777005046399,-181.83,0.00011029,2]
[421084721,1777005046410,-151.0,0.00011029,2]
[421084722,1777005046422,-151.0,0.00011029,2]
[421084723,1777005046432,-151.0,0.00011029,2]
[421084724,1777005046442,-151.0,0.00011029,2]
[421084725,1777005046453,-151.0,0.0001103,2]
[421084726,1777005046464,-151.0,0.0001103,2]
[421084727,1777005046476,-392.67,0.0001103,2]
[421084728,1777005046487,-392.69,0.0001103,2]
[421084729,1777005046499,-736.0,0.00011039,2]
[421084730,1777005046509,-250.0,0.00011053,2]
[421084731,1777005046520,-224.07,0.00011054,2]
[421084732,1777005046529,-465.36458214,0.0001107,2]
[421084733,1777005046539,-291.127393,0.00011084,2]
[421084734,1777005046549,-559.771561,0.00011084,2]
[421084735,1777005046559,-258.768812,0.00011084,2]
[421084736,1777005046569,-552.524806,0.00011084,2]
[421084737,1777005046578,-671.707629,0.00011084,2]
[421084738,1777005046588,-348.208759,0.00011084,2]
[421084739,1777005046598,-152.0,0.00011092,9]
[421084740,1777005046608,-200.0,0.00011096,2]
[421084741,1777005046618,-300.0,0.00011098,2]
[421084742,1777005046627,-300.0,0.00011098,2]
[421084743,1777005046637,-295.90885131,0.00011098,2]
[421084744,1777005046647,-300.0,0.00011098,2]
[421084745,1777005046657,-300.0,0.00011098,2]
[421084746,1777005046666,-300.0,0.00011098,2]
[421084747,1777005046677,-300.0,0.00011098,2]
[421084748,1777005046687,-300.0,0.00011098,2]
[421084749,1777005046698,-300.0,0.00011098,2]
[421084750,1777005046708,-300.0,0.00011098,2]
[421084751,1777005046718,-300.0,0.00011098,2]
[421084752,1777005046727,-666.0,0.00011098,2]
[421084753,1777005046737,-300.0,0.00011098,2]
[421084754,1777005046747,-86407.01911427,0.00011099,2]
[421084755,1777005046756,-86407.01911422,0.00011099,2]
[421084756,1777005046767,-86407.01911422,0.00011099,2]
[421084757,1777005046777,-86407.01911422,0.00011099,2]
[421084758,1777005046787,-86407.01911422,0.00011099,2]
[421084759,1777005046797,-86407.01911422,0.00011099,2]
[421084760,1777005046807,-86407.01911422,0.00011099,2]
[421084761,1777005046824,-101282.52592302,0.00011099,2]
[421084762,1777005046837,-101282.52592293,0.00011099,2]
[421084763,1777005046847,-101282.52592293,0.00011099,2]
[421084764,1777005046858,-101282.52592293,0.00011099,2]
[421084765,1777005046868,-101282.52592293,0.00011099,2]
[421084766,1777005046878,-101282.52592293,0.00011099,2]
[421084767,1777005046888,-101282.52592293,0.00011099,2]
[421084768,1777005046899,-101282.52592293,0.00011099,2]
[421084769,1777005046909,-221.6948152,0.00011128,2]
[421084770,1777005046919,-747.8093786,0.00011129,2]
[421084771,1777005046929,-1712.93078312,0.0001113,2]
[421084773,1777005046939,-214.76673806,0.0001113,2]
[421084775,1777005046949,-373.13934316,0.0001113,2]
[421084777,1777005046959,-599.60298507,0.00011132,2]
[421084779,1777005046970,-352.0,0.00011135,4]
[421084781,1777005046980,-197.67392508,0.000112,2]
[421084783,1777005046990,-2682.91568955,0.00011212,2]
[421084785,1777005047000,-2508.6066142,0.00011212,2]
[421084788,1777005047010,-247.9,0.0001122,2]
[421084790,1777005047021,-719.25,0.0001122,2]
[421084792,1777005047031,-368.5,0.0001122,2]
[421084794,1777005047041,-584.92,0.0001122,2]
[421084796,1777005047052,-1572.82,0.0001122,2]
[421084798,1777005047063,-1073.44,0.0001122,2]
[421084800,1777005047074,-446.0,0.0001122,2]
[421084801,1777005047084,-198.81,0.0001122,2]
[421084803,1777005047095,-911.36,0.0001122,2]
[421084805,1777005047105,-585.59,0.0001122,2]
[421084807,1777005047116,-164.18,0.0001122,2]
[421084809,1777005047126,-989.78,0.0001122,2]
[421084811,1777005047136,-1134.53,0.0001122,2]
[421084813,1777005047148,-620.91,0.0001122,2]
[421084816,1777005047158,-346.27,0.0001122,2]
[421084818,1777005047169,-502.86553041,0.00011221,2]
[421084820,1777005047180,-152.0,0.00011224,10]
[421084822,1777005047190,-300.0,0.00011231,2]
[421084824,1777005047201,-300.0,0.00011282,2]
[421084826,1777005047211,-300.0,0.00011282,2]
[421084828,1777005047221,-300.0,0.00011282,2]
[421084830,1777005047231,-666.0,0.00011282,2]
[421084832,1777005047241,-152.0,0.00011355,11]
[421084834,1777005047251,-710.0,0.00011376,2]
[421084836,1777005047261,-506.0,0.00011376,2]
[421084838,1777005047271,-3497.4448272,0.000114,2]
[421084840,1777005047281,-4609.0,0.00011443,2]
[421084842,1777005047291,-303.52849319,0.00011448,2]
[421084844,1777005047301,-86407.01911422,0.00011449,2]
[421084846,1777005047311,-150.0,0.00011464,2]
[421084848,1777005047321,-152.0,0.00011487,12]
[421084850,1777005047331,-101282.52592293,0.00011499,2]
[421084853,1777005047341,-17019.23830088,0.000115,2]
[421084855,1777005047352,-300.0,0.00011525,2]
[421084857,1777005047362,-352.0,0.00011606,4]
[421084859,1777005047373,-152.0,0.00011618,13]
[421084861,1777005047383,-200.0,0.00011644,2]
[421084863,1777005047393,-300.0,0.00011659,2]
[421084865,1777005047403,-300.0,0.00011659,2]
[421084867,1777005047412,-20000.0,0.0001166,2]
[421084869,1777005047422,-150.0,0.0001167,2]
[421084871,1777005047435,-1266.0,0.00011699,2]
[421084873,1777005047446,-1219.0,0.00011699,2]
[421084875,1777005047456,-927.0,0.00011699,2]
[421084877,1777005047466,-1349.0,0.00011699,2]
[421084879,1777005047475,-6032.0,0.00011699,2]
[421084880,1777005047485,-152.0,0.0001175,14]
[421084881,1777005047495,-178.4423824,0.0001175,5]
[421084882,1777005047505,-244.0546525,0.00011781,2]
[421084883,1777005047514,-151.0,0.00011838,2]
[421084884,1777005047525,-151.0,0.00011838,2]
[421084885,1777005047535,-151.0,0.00011844,2]
[421084886,1777005047544,-151.0,0.00011844,2]
[421084887,1777005047555,-392.67,0.00011851,2]
[421084888,1777005047565,-393.94,0.00011851,2]
[421084889,1777005047575,-392.67,0.00011852,2]
[421084890,1777005047587,-151.0,0.00011852,2]
[421084891,1777005047597,-392.67,0.00011852,2]
[421084892,1777005047607,-392.67,0.00011852,2]
[421084893,1777005047617,-254.88463672,0.00011861,2]
[421084894,1777005047628,-300.0,0.00011861,2]
[421084895,1777005047639,-300.0,0.00011861,2]
[421084896,1777005047651,-666.0,0.00011861,2]
[421084897,1777005047661,-450.0,0.00011892,2]
[421084898,1777005047672,-450.0,0.00011892,2]
[421084899,1777005047683,-450.0,0.00011892,2]
[421084900,1777005047694,-450.0,0.00011892,2]
[421084901,1777005047705,-450.0,0.00011892,2]
[421084902,1777005047716,-450.0,0.00011892,2]
[421084903,1777005047727,-450.0,0.00011892,2]
[421084904,1777005047737,-450.0,0.00011892,2]
[421084905,1777005047747,-450.0,0.00011892,2]
[421084906,1777005047946,-421.0,0.00011892,2]
[421084907,1777005047956,-300.0,0.00011897,2]
[421084908,1777005047965,-86407.01911422,0.00011899,2]
[421084909,1777005047974,-853.87445405,0.000119,3]
[421084910,1777005047984,-101282.52592293,0.000119,2]
[421084911,1777005047993,-416.514911,0.00011956,2]
[421084912,1777005048003,-259.302,0.00011956,2]
[421084913,1777005048012,-1082.07202723,0.0001199,2]
[421084914,1777005048021,-300.0,0.00011999,2]
[421084915,1777005048031,-300.0,0.00011999,2]
[421084916,1777005048041,-300.0,0.00011999,2]
[421084917,1777005048050,-300.0,0.00011999,2]
[421084918,1777005048060,-300.0,0.00011999,2]
[421084919,1777005048069,-666.0,0.00011999,2]
[421084920,1777005048079,-115584.9080651,0.00012,2]
[421084921,1777005048088,-12000.0,0.00012,2]
[421084922,1777005048098,-175.63,0.00012,2]
[421084923,1777005048110,-300.0,0.0001211,2]
[421084924,1777005048119,-1252.0,0.00012143,2]
[421084925,1777005048128,-200.0,0.00012192,2]
[421084926,1777005048137,-343.0,0.00012194,2]
[421084927,1777005048146,-1200.0,0.00012252,2]
[421084928,1777005048156,-2900.0,0.00012252,2]
[421084929,1777005048165,-1400.0,0.0001226,2]
[421084930,1777005048174,-1400.0,0.0001226,2]
[421084931,1777005048183,-1400.0,0.0001226,2]
[421084932,1777005048193,-1400.0,0.0001226,2]
[421084933,1777005048202,-1400.0,0.0001226,2]
[421084934,1777005048211,-1400.0,0.0001226,2]
[421084935,1777005048221,-1400.0,0.0001226,2]
[421084936,1777005048232,-1400.0,0.0001226,2]
[421084937,1777005048242,-1400.0,0.0001226,2]
[421084938,1777005048251,-1110.0,0.0001226,2]
[421084939,1777005048261,-86407.01911422,0.0001235,2]
[421084940,1777005048271,-710.0,0.00012376,2]
[421084941,1777005048280,-506.0,0.00012376,2]
[421084942,1777005048289,-190.0,0.00012383,2]
[421084943,1777005048298,-224.07,0.00012407,2]
[421084944,1777005048308,-300.0,0.00012439,2]
[421084945,1777005048319,-300.0,0.00012439,2]
[421084946,1777005048329,-667.38523823,0.00012439,2]
[421084947,1777005048339,-150.0,0.00012545,2]
[421084948,1777005048350,-6453.0,0.00012587,2]
[421084949,1777005048359,-787.28,0.00012659,2]
[421084950,1777005048368,-787.28,0.00012659,2]
[421084951,1777005048377,-787.28,0.00012659,2]
[421084952,1777005048386,-787.28,0.00012659,2]
[421084953,1777005048396,-787.28,0.00012659,2]
[421084954,1777005048406,-787.28,0.00012659,2]
[421084955,1777005048417,-787.28,0.00012659,2]
[421084956,1777005048427,-787.28,0.00012659,2]
[421084957,1777005048436,-787.28,0.00012659,2]
[421084958,1777005048447,-787.28,0.00012659,2]
[421084959,1777005048456,-787.28,0.00012659,2]
[421084960,1777005048465,-787.28,0.00012659,2]
[421084961,1777005048474,-787.28,0.00012659,2]
[421084962,1777005048483,-787.28,0.00012659,2]
[421084963,1777005048492,-787.37,0.00012659,2]
[421084964,1777005048501,-151.0,0.00012673,2]
[421084965,1777005048511,-151.98,0.00012674,2]
[421084966,1777005048520,-151.0,0.00012674,2]
[421084967,1777005048529,-224.07,0.00012703,2]
[421084968,1777005048538,-150.0,0.00012732,2]
[421084969,1777005048547,-150.0,0.00012732,2]
[421084970,1777005048557,-150.0,0.00012732,2]
[421084971,1777005048567,-150.0,0.00012732,2]
[421084972,1777005048576,-150.0,0.00012732,2]
[421084973,1777005048586,-150.0,0.00012732,2]
[421084974,1777005048595,-262.0,0.00012732,2]
[421084975,1777005048604,-200.0,0.0001274,2]
[421084976,1777005048613,-400.0,0.0001277,2]
[421084977,1777005048622,-400.0,0.0001277,2]
[421084978,1777005048631,-400.0,0.0001277,2]
[421084979,1777005048640,-756.3767347,0.000128,2]
[421084980,1777005048650,-596.29450858,0.000128,2]
[421084981,1777005048659,-596.29450858,0.000128,2]
[421084982,1777005048669,-300.0,0.00012804,2]
[421084983,1777005048679,-300.0,0.00012804,2]
[421084984,1777005048688,-13569.85579805,0.00012815,2]
[421084985,1777005048698,-300.0,0.00012892,2]
[421084986,1777005048710,-300.0,0.00012892,2]
[421084987,1777005048719,-300.0,0.00012892,2]
[421084988,1777005048730,-300.0,0.00012892,2]
[421084989,1777005048741,-318.0,0.00012893,2]
[421084990,1777005048752,-1577.0,0.00012893,2]
[421084991,1777005048762,-1577.0,0.00012893,2]
[421084992,1777005048772,-2832.0,0.00012893,2]
[421084993,1777005048782,-162.0,0.00012893,2]
[421084994,1777005048791,-162.0,0.00012893,2]
[421084995,1777005048801,-1577.0,0.00012893,2]
[421084996,1777005048810,-1577.0,0.00012893,2]
[421084997,1777005048821,-1574.0,0.00012893,2]
[421084998,1777005048830,-162.0,0.00012893,2]
[421084999,1777005048839,-162.0,0.00012893,2]
[421085000,1777005048848,-162.0,0.00012893,2]
[421085001,1777005048858,-162.0,0.00012893,2]
[421085002,1777005048867,-2818.0,0.00012893,2]
[421085003,1777005048876,-2818.0,0.00012893,2]
[421085004,1777005048889,-2818.0,0.00012893,2]
[421085005,1777005048899,-2818.0,0.00012893,2]
[421085006,1777005048909,-2818.0,0.00012893,2]
[421085007,1777005048920,-2818.0,0.00012893,2]
[421085008,1777005048930,-2818.0,0.00012893,2]
[421085009,1777005048939,-2818.0,0.00012893,2]
[421085010,1777005048949,-158.0,0.00012997,3]
[421085011,1777005048958,-5660.59850184,0.00013,2]
[421085012,1777005048967,-250.0,0.00013,2]
[421085013,1777005048977,-300.0,0.00013018,2]
[421085014,1777005048986,-250.0,0.00013079,2]
[421085015,1777005048996,-250.0,0.00013079,2]
[421085016,1777005049005,-250.0,0.00013079,2]
[421085017,1777005049015,-367.0,0.00013079,2]
[421085018,1777005049024,-163.0,0.0001315,2]
[421085019,1777005049033,-600.0,0.0001321,2]
[421085020,1777005049042,-600.0,0.0001321,2]
[421085021,1777005049051,-600.0,0.0001321,2]